bitfinex/quotes_SOLUSD_20241116
["timestamp","ask_amount","ask_price","bid_price","bid_amount"]
[1731756237965,6.2136,217.5,217.41,13.91600093]
[1731756238170,13.91600093,217.49,217.42,13.91600093]
[1731756238373,13.91600093,217.49,217.41,13.91600093]
[1731756238772,13.91600093,217.48,217.41,13.91600093]
[1731756240173,13.91600093,217.47,217.4,13.91600093]
[1731756240593,13.91600093,217.46,217.39,13.91600093]
[1731756243503,13.91600093,217.41,217.3,85.4799]
[1731756243681,13.91600093,217.4,217.33,13.91600093]
[1731756243875,14.00967555,217.42,217.35,13.91600093]
[1731756244872,13.91600093,217.41,217.34,13.91600093]
[1731756245384,13.91600093,217.4,217.3,70.0]
[1731756245579,13.91600093,217.41,217.33,13.91600093]
[1731756246190,13.91600093,217.4,217.33,13.91600093]
[1731756246579,13.91600093,217.39,217.32,13.91600093]
[1731756246972,13.91600093,217.4,217.33,13.91600093]
[1731756247178,13.91600093,217.38,217.3,13.91600093]
[1731756247783,13.91600093,217.37,217.3,13.91600093]
[1731756248398,13.91600093,217.37,217.29,13.91600093]
[1731756248788,13.91600093,217.36,217.27,70.0]
[1731756248998,13.91600093,217.36,217.29,13.91600093]
[1731756249872,30.08790093,217.35,217.24,70.0]
[1731756250096,30.08790093,217.35,217.28,13.91600093]
[1731756250408,30.08790093,217.35,217.23,21.83499416]
[1731756250409,13.91600093,217.32,217.25,13.91600093]
[1731756253208,13.91600093,217.31,217.24,13.91600093]
[1731756255715,13.91600093,217.31,217.23,12.48862777]
[1731756255716,13.91600093,217.27,217.23,12.48862777]
[1731756256782,13.91600093,217.3,217.23,26.4046287]
[1731756256983,6.1987,217.34,217.23,26.4046287]
[1731756256984,13.91600093,217.29,217.23,12.48862777]
[1731756257608,13.91600093,217.28,217.23,12.48862777]
[1731756258111,13.91600093,217.27,217.23,12.48862777]
[1731756258330,13.91600093,217.28,217.23,12.48862777]
[1731756259002,13.91600093,217.27,217.23,12.48862777]
[1731756259208,13.91600093,217.3,217.23,26.4046287]
[1731756259721,13.91600093,217.29,217.23,12.48862777]
[1731756260089,13.91600093,217.28,217.23,12.48862777]
[1731756260292,13.91600093,217.3,217.23,26.4046287]
[1731756260703,13.91600093,217.29,217.23,12.48862777]
[1731756261207,13.91600093,217.28,217.23,12.48862777]
[1731756261719,4.6015,217.32,217.23,12.48862777]
[1731756262096,13.91600093,217.29,217.23,12.48862777]
[1731756262712,13.91600093,217.3,217.23,26.4046287]
[1731756262909,10.7998,217.34,217.23,26.4046287]
[1731756263219,13.91600093,217.33,217.26,13.91600093]
[1731756263421,16.1719,217.35,217.3,13.91600093]
[1731756263599,15.6291,217.41,217.34,13.91600093]
[1731756263812,15.6291,217.41,217.26,0.1]
[1731756263813,0.09367462,217.42,217.32,70.0]
[1731756263998,0.09367462,217.42,217.36,23.776884]
[1731756264197,0.09367462,217.42,217.38,13.91600093]
[1731756264418,0.09367462,217.42,217.39,13.91600093]
[1731756265491,0.09367462,217.42,217.36,23.776884]
[1731756265492,0.09367462,217.42,217.4,13.91600093]
[1731756266001,0.09367462,217.42,217.41,13.91600093]
[1731756267419,0.09367462,217.42,217.39,13.91600093]
[1731756268022,0.09367462,217.42,217.41,13.91600093]
[1731756268929,0.09367462,217.42,217.39,23.776884]
[1731756269103,0.09367462,217.42,217.41,13.91600093]
[1731756269299,0.09367462,217.42,217.41,37.69288493]
[1731756269827,0.09367462,217.42,217.39,23.776884]
[1731756270021,0.09367462,217.42,217.4,13.91600093]
[1731756270203,0.09367462,217.42,217.41,13.91600093]
[1731756271615,0.09367462,217.42,217.41,23.776884]
[1731756271808,0.09367462,217.42,217.41,37.69288493]
[1731756272798,0.09367462,217.42,217.41,107.69288493]
[1731756273817,161.7,217.62,217.41,107.69288493]
[1731756273818,29.48090093,217.57,217.44,70.0]
[1731756274003,6.2064,217.6,217.55,13.91600093]
[1731756274207,6.2064,217.6,217.54,23.776884]
[1731756274416,24.71800093,217.6,217.54,23.776884]
[1731756274599,6.2064,217.6,217.54,23.776884]
[1731756274805,6.2064,217.6,217.56,23.776884]
[1731756275203,6.2064,217.6,217.56,37.69288493]
[1731756275416,15.5649,217.62,217.56,23.776884]
[1731756275996,20.12240093,217.65,217.57,13.91600093]
[1731756276312,6.2064,217.65,217.59,37.69288493]
[1731756276510,13.91600093,217.66,217.59,37.69288493]
[1731756276719,29.48090093,217.67,217.59,37.69288493]
[1731756277199,34.07510093,217.67,217.59,37.69288493]
[1731756277404,13.91600093,217.65,217.59,23.776884]
[1731756277605,13.91600093,217.61,217.53,13.91600093]
[1731756277811,13.91600093,217.61,217.54,23.776884]
[1731756278715,18.51130093,217.61,217.54,23.776884]
[1731756279230,18.51100093,217.63,217.57,23.776884]
[1731756279407,18.51100093,217.63,217.56,13.91600093]
[1731756279920,18.51060093,217.65,217.57,23.776884]
[1731756280123,0.09367462,217.64,217.57,23.776884]
[1731756280432,18.51060093,217.65,217.57,23.776884]
[1731756281914,18.51060093,217.65,217.58,13.91600093]
[1731756281915,13.91600093,217.65,217.58,13.91600093]
[1731756282118,13.91600093,217.65,217.57,23.776884]
[1731756282505,13.91600093,217.65,217.57,37.69288493]
[1731756283129,0.09367462,217.66,217.59,13.91600093]
[1731756283519,34.07500093,217.67,217.6,23.776884]
[1731756283728,29.48090093,217.67,217.6,23.776884]
[1731756283903,0.09367462,217.68,217.61,13.91600093]
[1731756284233,0.09367462,217.68,217.55,15.0105]
[1731756284234,0.09367462,217.68,217.64,23.776884]
[1731756285340,0.09367462,217.68,217.65,13.91600093]
[1731756285541,0.09367462,217.68,217.66,23.776884]
[1731756286205,0.09367462,217.68,217.57,24.027864]
[1731756286503,0.09367462,217.68,217.65,23.776884]
[1731756287509,0.09367462,217.68,217.62,13.91600093]
[1731756287902,0.09367462,217.68,217.64,13.91600093]
[1731756288307,0.09367462,217.68,217.62,13.91600093]
[1731756288727,0.09367462,217.68,217.65,23.776884]
[1731756288913,0.09367462,217.68,217.67,23.776884]
[1731756292640,0.09367462,217.68,217.67,93.776884]
[1731756294412,0.09367462,217.68,217.67,23.776884]
[1731756296431,0.09367462,217.68,217.66,13.91600093]
[1731756297541,0.09367462,217.68,217.67,23.776884]
[1731756301130,0.09367462,217.68,217.66,37.69288493]
[1731756301513,0.09367462,217.68,217.67,13.91600093]
[1731756301714,0.09367462,217.68,217.67,37.69288493]
[1731756302141,0.09367462,217.68,217.67,23.776884]
[1731756303225,0.09367462,217.68,217.66,23.776884]
[1731756304037,0.09367462,217.68,217.66,37.69288493]
[1731756304443,0.09367462,217.68,217.66,23.776884]
[1731756305036,0.09367462,217.68,217.65,23.776884]
[1731756305531,0.09367462,217.68,217.64,23.776884]
[1731756306938,14.00967555,217.68,217.61,23.776884]
[1731756307125,13.91600093,217.66,217.59,13.91600093]
[1731756307333,13.91600093,217.66,217.58,13.91600093]
[1731756307516,0.09367462,217.65,217.58,13.91600093]
[1731756307720,4.5941,217.67,217.56,13.91600093]
[1731756307721,13.91600093,217.64,217.56,13.91600093]
[1731756308017,13.91600093,217.64,217.54,70.0]
[1731756308233,13.91600093,217.62,217.54,70.0]
[1731756308534,13.91600093,217.62,217.54,83.91600093]
[1731756308726,13.91600093,217.67,217.59,13.91600093]
[1731756309049,13.91600093,217.67,217.6,23.776884]
[1731756309737,0.09367462,217.65,217.6,23.776884]
[1731756311637,14.00967555,217.65,217.6,23.776884]
[1731756311825,14.00967555,217.65,217.58,23.776884]
[1731756312438,0.12549,217.62,217.55,13.91600093]
[1731756312741,13.91600093,217.63,217.55,13.91600093]
[1731756313244,13.91600093,217.61,217.53,13.91600093]
[1731756313422,13.91600093,217.61,217.54,23.776884]
[1731756314420,13.91600093,217.61,217.53,23.776884]
[1731756315123,13.91600093,217.61,217.53,37.69288493]
[1731756317121,14.00967555,217.6,217.53,23.776884]
[1731756317445,13.91600093,217.59,217.53,23.776884]
[1731756317948,13.91600093,217.58,217.52,23.776884]
[1731756318126,13.91600093,217.55,217.48,13.91600093]
[1731756318533,13.91600093,217.56,217.48,13.91600093]
[1731756319747,13.91600093,217.56,217.49,23.776884]
[1731756320324,13.91600093,217.57,217.49,37.69288493]
[1731756320635,14.00967555,217.58,217.52,23.776884]
[1731756321147,13.91600093,217.57,217.5,23.776884]
[1731756321647,13.91600093,217.56,217.5,23.776884]
[1731756322022,13.91600093,217.56,217.49,23.776884]
[1731756322446,13.91600093,217.55,217.49,23.776884]
[1731756322624,13.91600093,217.54,217.49,23.776884]
[1731756322824,13.91600093,217.53,217.47,23.776884]
[1731756323141,13.91600093,217.54,217.47,37.69288493]
[1731756324025,13.91600093,217.54,217.47,23.776884]
[1731756324349,13.91600093,217.56,217.48,13.91600093]
[1731756324528,14.00967555,217.58,217.51,23.776884]
[1731756325546,14.00967555,217.58,217.51,37.69288493]
[1731756325724,14.00967555,217.58,217.51,23.776884]
[1731756326241,13.91600093,217.57,217.51,23.776884]
[1731756326549,13.91600093,217.56,217.5,23.776884]
[1731756327749,13.91600093,217.55,217.49,23.776884]
[1731756327929,13.91600093,217.52,217.48,23.776884]
[1731756328129,13.91600093,217.52,217.46,23.776884]
[1731756329251,13.91600093,217.54,217.46,37.69288493]
[1731756330829,4.81516462,217.58,217.47,13.91600093]
[1731756331030,13.91600093,217.54,217.48,23.776884]
[1731756331635,4.81516462,217.58,217.52,13.91600093]
[1731756331636,0.09367462,217.58,217.52,13.91600093]
[1731756331844,0.09367462,217.58,217.53,37.69288493]
[1731756332037,0.09367462,217.58,217.55,23.776884]
[1731756332543,0.09367462,217.58,217.53,23.776884]
[1731756332544,0.09367462,217.58,217.53,37.69288493]
[1731756332853,0.09367462,217.58,217.55,8.91965595]
[1731756333148,0.09367462,217.58,217.56,23.776884]
[1731756334450,0.09367462,217.58,217.56,32.69653995]
[1731756334850,0.09367462,217.58,217.56,23.776884]
[1731756336043,0.09367462,217.58,217.55,23.776884]
[1731756336244,0.09367462,217.58,217.53,23.776884]
[1731756336558,0.09367462,217.58,217.51,37.71102863]
[1731756338156,0.09367462,217.58,217.53,23.776884]
[1731756339560,0.09367462,217.58,217.53,13.93414463]
[1731756340032,0.09367462,217.58,217.54,37.71102863]
[1731756340239,0.09367462,217.58,217.57,37.71102863]
[1731756340550,0.09367462,217.58,217.55,13.93414463]
[1731756340747,13.93414463,217.56,217.51,23.776884]
[1731756341237,13.93414463,217.57,217.51,23.776884]
[1731756341651,14.02781925,217.58,217.51,37.71102863]
[1731756341850,0.09367462,217.58,217.52,13.93414463]
[1731756342037,0.09367462,217.58,217.55,37.71102863]
[1731756342657,0.09367462,217.58,217.54,23.776884]
[1731756343040,0.09367462,217.58,217.55,13.93414463]
[1731756343450,0.09367462,217.58,217.56,23.776884]
[1731756343963,0.09367462,217.58,217.56,37.71102863]
[1731756344163,0.09367462,217.58,217.57,37.71102863]
[1731756345938,0.09367462,217.58,217.57,107.71102863]
[1731756346139,0.09367462,217.58,217.57,121.73884788]
[1731756346339,0.09367462,217.68,217.64,23.776884]
[1731756346647,0.09367462,217.68,217.67,23.776884]
[1731756347161,0.09367462,217.68,217.66,13.93414463]
[1731756347537,0.09367462,217.68,217.67,23.776884]
[1731756347941,0.09367462,217.68,217.67,37.71102863]
[1731756348258,0.09367462,217.68,217.67,23.776884]
[1731756349147,0.09367462,217.68,217.67,37.71102863]
[1731756349557,0.09367462,217.68,217.67,23.776884]
[1731756350457,0.09367462,217.68,217.67,37.71102863]
[1731756350666,13.93414463,217.79,217.67,37.71102863]
[1731756350966,13.93414463,217.79,217.73,13.93414463]
[1731756351461,13.93414463,217.81,217.73,37.71102863]
[1731756352874,13.93414463,217.77,217.71,23.776884]
[1731756353176,13.93414463,217.72,217.65,13.93414463]
[1731756353474,0.21916462,217.72,217.56,70.0]
[1731756353645,0.21916462,217.7,217.52,70.0]
[1731756354352,0.21916462,217.7,217.55,70.0]
[1731756354554,0.21916462,217.68,217.55,70.0]
[1731756354874,13.93414463,217.67,217.6,13.93414463]
[1731756355052,13.93414463,217.64,217.56,13.93414463]
[1731756355367,13.93414463,217.69,217.53,13.93414463]
[1731756355368,13.93414463,217.61,217.53,13.93414463]
[1731756355659,13.93414463,217.6,217.52,13.93414463]
[1731756355872,13.93414463,217.59,217.52,13.93414463]
[1731756356042,13.93414463,217.6,217.52,13.93414463]
[1731756356366,13.93414463,217.6,217.53,13.93414463]
[1731756356671,13.93414463,217.61,217.54,13.93414463]
[1731756357167,13.93414463,217.6,217.53,13.93414463]
[1731756357757,13.93414463,217.6,217.52,13.93414463]
[1731756358062,13.93414463,217.61,217.54,13.93414463]
[1731756358259,13.93414463,217.6,217.54,23.776884]
[1731756359057,0.21916462,217.64,217.54,23.776884]
[1731756359265,13.93414463,217.6,217.54,23.776884]
[1731756359969,0.12549,217.64,217.53,23.776884]
[1731756359970,13.93414463,217.59,217.53,23.776884]
[1731756360166,13.93414463,217.58,217.53,23.776884]
[1731756360371,13.93414463,217.56,217.49,13.93414463]
[1731756360561,13.93414463,217.56,217.48,13.93414463]
[1731756360764,13.93414463,217.56,217.46,70.0]
[1731756360964,13.93414463,217.58,217.5,13.93414463]
[1731756361269,6.066,217.61,217.52,13.93414463]
[1731756361270,13.93414463,217.6,217.52,13.93414463]
[1731756361475,29.78104463,217.63,217.56,13.93414463]
[1731756361662,29.78104463,217.63,217.55,13.93414463]
[1731756361862,29.78104463,217.63,217.56,23.776884]
[1731756362072,6.066,217.66,217.56,23.776884]
[1731756362073,20.00014463,217.66,217.6,23.776884]
[1731756362369,14.02781925,217.67,217.6,23.776884]
[1731756362550,0.09367462,217.67,217.61,13.93414463]
[1731756362750,0.09367462,217.67,217.63,37.71102863]
[1731756362950,0.09367462,217.67,217.64,13.93414463]
[1731756365767,0.09367462,217.67,217.63,37.71102863]
[1731756366166,0.09367462,217.67,217.64,2.69]
[1731756366367,0.09367462,217.65,217.59,13.93414463]
[1731756366575,13.93414463,217.65,217.58,13.93414463]
[1731756367862,13.93414463,217.65,217.59,23.776884]
[1731756371059,13.93414463,217.6,217.52,13.93414463]
[1731756371267,4.5946,217.65,217.51,13.93414463]
[1731756371268,13.93414463,217.58,217.51,13.93414463]
[1731756371484,13.93414463,217.57,217.5,13.93414463]
[1731756372661,13.93414463,217.53,217.46,13.93414463]
[1731756373259,13.93414463,217.52,217.45,90.30114463]
[1731756373467,13.93414463,217.53,217.46,13.93414463]
[1731756374165,13.93414463,217.53,217.47,13.93414463]
[1731756374762,4.72049,217.63,217.51,13.93414463]
[1731756374960,13.93414463,217.57,217.51,13.93414463]
[1731756375179,13.93414463,217.57,217.5,13.93414463]
[1731756375372,13.93414463,217.57,217.51,23.776884]
[1731756375574,13.93414463,217.57,217.51,13.93414463]
[1731756375962,13.93414463,217.57,217.52,23.776884]
[1731756376385,13.93414463,217.55,217.46,23.776884]
[1731756376586,13.93414463,217.55,217.49,23.776884]
[1731756376880,13.93414463,217.55,217.49,13.93414463]
[1731756377093,13.93414463,217.55,217.5,23.776884]
[1731756377886,0.25098,217.6,217.45,13.93414463]
[1731756378089,13.93414463,217.5,217.44,15.3521]
[1731756378283,13.93414463,217.49,217.42,83.93414463]
[1731756379061,13.93414463,217.49,217.42,13.93414463]
[1731756379461,13.93414463,217.49,217.43,23.776884]
[1731756380388,13.93414463,217.49,217.43,37.71102863]
[1731756380570,13.93414463,217.53,217.46,13.93414463]
[1731756380968,13.93414463,217.53,217.47,23.776884]
[1731756381272,13.93414463,217.54,217.47,13.93414463]
[1731756381582,13.93414463,217.52,217.48,23.776884]
[1731756382061,13.93414463,217.52,217.46,23.776884]
[1731756382266,13.93414463,217.53,217.46,37.71102863]
[1731756387081,13.93414463,217.51,217.45,23.776884]
[1731756388087,0.09367462,217.53,217.45,23.776884]
[1731756388288,13.93414463,217.54,217.47,13.93414463]
[1731756388674,13.93414463,217.53,217.46,13.93414463]
[1731756389072,13.93414463,217.54,217.47,13.93414463]
[1731756391600,13.93414463,217.53,217.47,23.776884]
[1731756392187,13.93414463,217.52,217.47,23.776884]
[1731756392578,13.93414463,217.52,217.46,23.776884]
[1731756393275,13.93414463,217.53,217.46,37.71102863]
[1731756393692,15.1436,217.55,217.48,13.93414463]
[1731756393873,18.53044463,217.57,217.5,13.93414463]
[1731756394075,13.93414463,217.59,217.53,23.776884]
[1731756394290,15.5477,217.6,217.53,37.71102863]
[1731756394291,29.48184463,217.6,217.53,37.71102863]
[1731756394497,13.93414463,217.61,217.54,13.93414463]
[1731756396391,15.5477,217.65,217.55,37.71102863]
[1731756396392,13.93414463,217.62,217.55,37.71102863]
[1731756397081,13.93414463,217.61,217.55,23.776884]
[1731756399792,13.93414463,217.6,217.53,13.93414463]
[1731756399995,13.93414463,217.58,217.5,13.93414463]
[1731756400788,13.93414463,217.6,217.53,13.93414463]
[1731756400983,13.93414463,217.61,217.54,13.93414463]
[1731756401809,4.5947,217.64,217.53,13.93414463]
[1731756401810,13.93414463,217.6,217.53,13.93414463]
[1731756402695,13.93414463,217.59,217.51,13.93414463]
[1731756402896,13.93414463,217.52,217.45,13.93414463]
[1731756403594,13.93414463,217.51,217.45,13.93414463]
[1731756403796,13.93414463,217.49,217.43,6.1465]
[1731756404209,13.93414463,217.47,217.42,16.509]
[1731756404503,13.93414463,217.54,217.46,13.93414463]
[1731756404703,13.93414463,217.54,217.47,13.93414463]
[1731756404905,13.93414463,217.55,217.47,13.93414463]
[1731756405287,13.93414463,217.54,217.47,13.93414463]
[1731756405585,13.93414463,217.55,217.47,13.93414463]
[1731756406693,13.93414463,217.54,217.47,13.93414463]
[1731756408486,13.93414463,217.55,217.47,13.93414463]
[1731756409497,18.53044463,217.57,217.5,13.93414463]
[1731756409692,13.93414463,217.58,217.51,13.93414463]
[1731756410714,13.93414463,217.59,217.51,13.93414463]
[1731756410885,13.93414463,217.59,217.52,13.93414463]
[1731756411215,13.93414463,217.61,217.54,13.93414463]
[1731756413095,13.93414463,217.63,217.55,13.93414463]
[1731756413299,13.93414463,217.63,217.56,13.93414463]
[1731756413789,13.93414463,217.63,217.49,16.509]
[1731756413790,13.93414463,217.66,217.59,13.93414463]
[1731756413991,14.02781925,217.67,217.6,13.93414463]
[1731756414195,14.02781925,217.67,217.59,23.776884]
[1731756414196,0.09367462,217.67,217.61,13.93414463]
[1731756414495,0.09367462,217.67,217.63,37.71102863]
[1731756414689,0.09367462,217.67,217.64,13.93414463]
[1731756414898,0.09367462,217.67,217.62,13.93414463]
[1731756416418,14.02781925,217.67,217.6,13.93414463]
[1731756417218,14.02781925,217.67,217.59,15.8085]
[1731756417219,13.93414463,217.66,217.59,15.8085]
[1731756417912,13.93414463,217.66,217.59,29.74264463]
[1731756419103,13.93414463,217.65,217.59,15.8085]
[1731756420416,13.93414463,217.65,217.54,13.93414463]
[1731756420417,13.93414463,217.61,217.54,13.93414463]
[1731756420614,13.93414463,217.6,217.53,29.74264463]
[1731756420912,13.93414463,217.6,217.53,99.74264463]
[1731756421124,13.93414463,217.62,217.55,13.93414463]
[1731756421319,13.93414463,217.63,217.56,13.93414463]
[1731756422319,13.93414463,217.66,217.58,13.93414463]
[1731756422611,14.02781925,217.67,217.6,13.93414463]
[1731756422996,13.93414463,217.65,217.58,13.93414463]
[1731756423198,13.93414463,217.65,217.57,13.93414463]
[1731756423708,13.93414463,217.64,217.57,13.93414463]
[1731756423912,13.93414463,217.62,217.55,13.93414463]
[1731756424102,23.776884,217.66,217.53,85.8085]
[1731756424103,13.93414463,217.61,217.54,13.93414463]
[1731756424417,13.93414463,217.63,217.55,13.93414463]
[1731756425813,13.93414463,217.66,217.59,13.93414463]
[1731756427214,0.09367462,217.67,217.61,13.93414463]
[1731756427401,0.09367462,217.67,217.56,70.0]
[1731756427402,0.09367462,217.67,217.62,13.93414463]
[1731756427606,0.09367462,217.67,217.63,13.93414463]
[1731756428300,0.09367462,217.67,217.55,0.2]
[1731756428301,0.09367462,217.67,217.66,13.93414463]
[1731756430502,0.09367462,217.67,217.66,14.02781925]
[1731756431027,0.09367462,217.67,217.66,38.05568325]
[1731756432021,0.09367462,217.67,217.66,14.02781925]
[1731756432612,0.09367462,217.67,217.66,38.05568325]
[1731756435022,0.09367462,217.67,217.66,14.02781925]
[1731756435230,0.09367462,217.67,217.66,13.93414463]
[1731756435606,0.09367462,217.67,217.66,14.02781925]
[1731756445129,0.09367462,217.67,217.65,13.93414463]
[1731756445337,0.09367462,217.67,217.64,13.93414463]
[1731756446044,0.09367462,217.67,217.66,13.93414463]
[1731756449329,0.09367462,217.67,217.65,70.0]
[1731756449531,0.09367462,217.67,217.65,13.93414463]
[1731756449924,0.09367462,217.67,217.66,13.93414463]
[1731756451418,0.09367462,217.67,217.64,13.93414463]
[1731756451620,0.09367462,217.67,217.62,70.09367462]
[1731756451820,0.09367462,217.67,217.61,13.93414463]
[1731756452234,0.09367462,217.67,217.62,13.93414463]
[1731756452740,0.09367462,217.67,217.66,70.09367462]
[1731756453121,0.09367462,217.67,217.66,84.02781925]
[1731756456329,0.09367462,217.67,217.64,13.93414463]
[1731756457029,0.09367462,217.67,217.63,70.0]
[1731756457439,0.09367462,217.67,217.6,83.93414463]
[1731756457623,13.93414463,217.66,217.58,13.93414463]
[1731756458436,13.93414463,217.66,217.59,13.93414463]
[1731756458642,13.93414463,217.65,217.57,100.28694463]
[1731756458947,13.93414463,217.64,217.57,70.0]
[1731756459443,13.93414463,217.64,217.57,83.93414463]
[1731756459647,14.02781925,217.67,217.59,13.93414463]
[1731756460029,14.02781925,217.67,217.57,70.0]
[1731756460030,13.93414463,217.66,217.58,13.93414463]
[1731756460223,13.93414463,217.63,217.55,13.93414463]
[1731756460727,13.93414463,217.61,217.54,83.93414463]
[1731756463836,13.93414463,217.63,217.55,13.93414463]
[1731756464036,13.93414463,217.62,217.55,13.93414463]
[1731756464241,13.93414463,217.61,217.54,83.93414463]
[1731756464747,13.93414463,217.61,217.54,70.0]
[1731756465440,13.93414463,217.57,217.5,83.93414463]
[1731756467039,13.93414463,217.57,217.5,13.93414463]
[1731756467243,13.93414463,217.56,217.48,13.93414463]
[1731756467556,13.93414463,217.55,217.48,13.93414463]
[1731756467757,13.93414463,217.54,217.47,13.93414463]
[1731756467957,13.93414463,217.55,217.48,13.93414463]
[1731756468454,13.93414463,217.54,217.46,13.93414463]
[1731756469070,19.9432,217.59,217.44,70.0]
[1731756469071,13.93414463,217.51,217.44,83.93414463]
[1731756469541,4.5963,217.57,217.4,16.6375]
[1731756469542,13.93414463,217.5,217.43,13.93414463]
[1731756470136,29.28144463,217.5,217.43,13.93414463]
[1731756470933,15.3473,217.5,217.44,13.93414463]
[1731756471437,13.93414463,217.52,217.45,13.93414463]
[1731756471853,13.93414463,217.53,217.46,13.93414463]
[1731756472195,13.93414463,217.52,217.45,13.93414463]
[1731756472340,15.3473,217.56,217.44,70.0]
[1731756472341,13.93414463,217.51,217.44,13.93414463]
[1731756472861,13.93414463,217.52,217.45,13.93414463]
[1731756473038,13.93414463,217.51,217.44,13.93414463]
[1731756473836,13.93414463,217.53,217.46,13.93414463]
[1731756474066,13.93414463,217.55,217.48,13.93414463]
[1731756474236,15.3473,217.56,217.5,13.93414463]
[1731756475137,15.3473,217.56,217.47,70.0]
[1731756475345,13.93414463,217.55,217.48,13.93414463]
[1731756476052,15.3473,217.56,217.48,13.93414463]
[1731756476357,29.28144463,217.56,217.49,13.93414463]
[1731756476670,13.93414463,217.55,217.48,13.93414463]
[1731756476955,29.28144463,217.56,217.49,13.93414463]
[1731756477180,13.93414463,217.55,217.48,13.93414463]
[1731756477556,29.28144463,217.56,217.49,13.93414463]
[1731756477744,13.93414463,217.6,217.53,13.93414463]
[1731756478069,13.93414463,217.64,217.57,13.93414463]
[1731756478858,13.93414463,217.63,217.56,13.93414463]
[1731756479058,20.47304463,217.65,217.58,13.93414463]
[1731756479260,16.6412,217.66,217.59,13.93414463]
[1731756479476,16.6412,217.66,217.6,13.93414463]
[1731756479659,30.57534463,217.66,217.59,13.93414463]
[1731756479842,13.93414463,217.65,217.58,13.93414463]
[1731756480356,13.93414463,217.62,217.55,13.93414463]
[1731756480949,13.93414463,217.56,217.49,13.93414463]
[1731756481145,13.93414463,217.57,217.49,13.93414463]
[1731756481466,13.93414463,217.56,217.49,13.93414463]
[1731756481966,13.93414463,217.54,217.47,13.93414463]
[1731756482143,13.93414463,217.55,217.47,83.93414463]
[1731756482967,13.93414463,217.55,217.48,13.93414463]
[1731756483142,6.6389,217.6,217.48,13.93414463]
[1731756483143,13.93414463,217.59,217.52,13.93414463]
[1731756484171,13.93414463,217.58,217.51,13.93414463]
[1731756484372,20.47304463,217.6,217.52,13.93414463]
[1731756484670,13.93414463,217.59,217.52,13.93414463]
[1731756484872,13.93414463,217.58,217.51,13.93414463]
[1731756485244,13.93414463,217.56,217.49,13.93414463]
[1731756485446,13.93414463,217.57,217.5,13.93414463]
[1731756486752,13.93414463,217.56,217.49,13.93414463]
[1731756487076,13.93414463,217.58,217.5,13.93414463]
[1731756487455,13.93414463,217.57,217.5,13.93414463]
[1731756489194,13.93414463,217.56,217.48,13.93414463]
[1731756489563,13.93414463,217.56,217.49,13.93414463]
[1731756490185,13.93414463,217.56,217.48,13.93414463]
[1731756490484,13.93414463,217.53,217.46,13.93414463]
[1731756490662,13.93414463,217.52,217.45,13.93414463]
[1731756490857,13.93414463,217.53,217.45,13.93414463]
[1731756491072,13.93414463,217.54,217.47,13.93414463]
[1731756491574,13.93414463,217.55,217.48,13.93414463]
[1731756491775,13.93414463,217.55,217.47,13.93414463]
[1731756492874,13.93414463,217.51,217.42,16.5703]
[1731756493072,13.93414463,217.51,217.44,13.93414463]
[1731756494692,13.93414463,217.5,217.43,13.93414463]
[1731756495062,13.93414463,217.47,217.41,70.0]
[1731756495565,13.93414463,217.48,217.42,13.93414463]
[1731756495762,13.93414463,217.49,217.42,13.93414463]
[1731756495965,13.93414463,217.48,217.41,83.93414463]
[1731756497759,13.93414463,217.48,217.42,13.93414463]
[1731756498284,13.93414463,217.49,217.42,13.93414463]
[1731756499882,13.93414463,217.49,217.43,13.93414463]
[1731756500179,13.93414463,217.52,217.46,13.93414463]
[1731756500970,13.93414463,217.52,217.45,13.93414463]
[1731756501289,13.93414463,217.51,217.44,13.93414463]
[1731756502285,34.31394463,217.53,217.46,13.93414463]
[1731756503186,15.7827,217.53,217.49,13.93414463]
[1731756503404,15.7827,217.53,217.5,13.93414463]
[1731756503570,15.7827,217.53,217.51,13.93414463]
[1731756503772,15.7827,217.53,217.52,13.93414463]
[1731756504682,15.7827,217.53,217.52,84.02781925]
[1731756505193,15.7827,217.53,217.52,84.27879925]
[1731756505766,15.7827,217.53,217.52,108.05568325]
[1731756506388,6.5389,217.6,217.57,70.0]
[1731756506579,6.5389,217.6,217.59,13.93414463]
[1731756506973,0.09367462,217.67,217.59,13.93414463]
[1731756507172,0.09367462,217.67,217.63,13.93414463]
[1731756507369,0.09367462,217.67,217.64,13.93414463]
[1731756507599,0.09367462,217.67,217.65,13.93414463]
[1731756508171,0.09367462,217.67,217.63,13.93414463]
[1731756508473,0.09367462,217.67,217.65,3.06]
[1731756508686,13.93414463,217.66,217.58,13.93414463]
[1731756509009,13.93414463,217.65,217.58,13.93414463]
[1731756509179,13.93414463,217.65,217.57,13.93414463]
[1731756509381,13.93414463,217.65,217.59,3.06]
[1731756510891,13.93414463,217.66,217.59,3.06]
[1731756511306,13.93414463,217.65,217.59,3.06]